[Event "Titled Tuesday Blitz June 13 Late 2023"]
[White "Silva, Caio Henrique Angelico"]
[Black "Myers, Dominique"]
[WhiteFideId "22777210"]
[BlackFideId "2041715"]
[WhiteElo "2096"]
[BlackElo "1951"]
[Result "0-1"]
[Round "6"]
[TimeControl "180+2"]
[Date "2023.06.13"]
[WhiteClock "0:01:46"]
[BlackClock "0:02:32"]
[Board "103"]

1. d4 {[%clk 0:02:56]}  Nf6 {[%clk 0:02:59]} 2. Nf3 {[%clk 0:02:46]}  g6 {[%clk 0:02:59]} 3. g3 {[%clk 0:02:47]}  Bg7 {[%clk 0:03:00]} 4. Bg2 {[%clk 0:02:48]}  c6 {[%clk 0:03:01]} 5. O-O {[%clk 0:02:48]}  d5 {[%clk 0:03:01]} 6. c4 {[%clk 0:02:48]}  O-O {[%clk 0:02:59]} 7. cxd5 {[%clk 0:02:48]}  cxd5 {[%clk 0:02:59]} 8. Ne5 {[%clk 0:02:48]}  Nc6 {[%clk 0:02:58]} 9. Nxc6 {[%clk 0:02:48]}  bxc6 {[%clk 0:02:59]} 10. Nc3 {[%clk 0:02:49]}  Nd7 {[%clk 0:02:56]} 11. b3 {[%clk 0:02:36]}  e5 {[%clk 0:02:55]} 12. dxe5 {[%clk 0:02:35]}  Nxe5 {[%clk 0:02:55]} 13. Bb2 {[%clk 0:02:35]}  Ba6 {[%clk 0:02:54]} 14. Re1 {[%clk 0:02:33]}  Re8 {[%clk 0:02:53]} 15. Rc1 {[%clk 0:02:33]}  Rb8 {[%clk 0:02:52]} 16. Na4 {[%clk 0:02:32]}  Bb5 {[%clk 0:02:45]} 17. Nc3 {[%clk 0:02:27]}  Ba6 {[%clk 0:02:44]} 18. e4 {[%clk 0:02:08]}  Nd3 {[%clk 0:02:41]} 19. Qc2 {[%clk 0:02:03]}  Nxe1 {[%clk 0:02:39]} 20. Rxe1 {[%clk 0:02:04]}  dxe4 {[%clk 0:02:36]} 21. Nxe4 {[%clk 0:02:02]}  Bd3 {[%clk 0:02:36]} 22. Qc1 {[%clk 0:01:58]}  Bxe4 {[%clk 0:02:32]} 23. Bxe4 {[%clk 0:01:57]}  Bxb2 {[%clk 0:02:32]} 24. Qxb2 {[%clk 0:01:46]}  f5 {[%clk 0:02:32]} 0-1


[Site "https://www.chess.com"]

[Event "Titled Tuesday Blitz June 13 Late 2023"]
[White "Dobrowolski, Piotr"]
[Black "Pesotskiy, Mikhail"]
[WhiteFideId "1106236"]
[BlackFideId "34164453"]
[WhiteElo "2305"]
[BlackElo "2131"]
[Result "1-0"]
[Round "6"]
[TimeControl "180+2"]
[Date "2023.06.13"]
[WhiteClock "0:00:17"]
[BlackClock "0:00:00"]
[Board "105"]

1. e4 {[%clk 0:02:58]}  e6 {[%clk 0:03:00]} 2. Nf3 {[%clk 0:02:54]}  d5 {[%clk 0:03:01]} 3. Nc3 {[%clk 0:02:35]}  Nf6 {[%clk 0:03:01]} 4. e5 {[%clk 0:02:33]}  Nfd7 {[%clk 0:03:01]} 5. Ne2 {[%clk 0:02:33]}  c5 {[%clk 0:03:02]} 6. c3 {[%clk 0:02:33]}  Nc6 {[%clk 0:02:53]} 7. d4 {[%clk 0:02:33]}  Qb6 {[%clk 0:02:54]} 8. a3 {[%clk 0:02:32]}  cxd4 {[%clk 0:02:53]} 9. cxd4 {[%clk 0:02:32]}  f6 {[%clk 0:02:54]} 10. Nf4 {[%clk 0:02:26]}  fxe5 {[%clk 0:02:32]} 11. Nxe6 {[%clk 0:02:21]}  e4 {[%clk 0:02:21]} 12. Nfg5 {[%clk 0:02:18]}  Nf6 {[%clk 0:02:18]} 13. Bf4 {[%clk 0:02:03]}  Bxe6 {[%clk 0:01:54]} 14. Nxe6 {[%clk 0:02:01]}  Rc8 {[%clk 0:01:55]} 15. b4 {[%clk 0:01:48]}  Nxb4 {[%clk 0:01:42]} 16. Qa4+ {[%clk 0:01:15]}  Kf7 {[%clk 0:01:09]} 17. Ng5+ {[%clk 0:01:15]}  Kg6 {[%clk 0:01:09]} 18. axb4 {[%clk 0:01:11]}  Bxb4+ {[%clk 0:01:10]} 19. Ke2 {[%clk 0:01:04]}  Qxd4 {[%clk 0:01:06]} 20. Qd1 {[%clk 0:00:24]}  Qc4+ {[%clk 0:00:07]} 21. Ke3 {[%clk 0:00:24]}  d4+ {[%clk 0:00:07]} 22. Qxd4 {[%clk 0:00:19]}  Bc5 {[%clk 0:00:07]} 23. Bxc4 {[%clk 0:00:18]}  Bxd4+ {[%clk 0:00:06]} 24. Kxd4 {[%clk 0:00:19]}  Rhd8+ {[%clk 0:00:06]} 25. Kc3 {[%clk 0:00:18]}  Rd3+ {[%clk 0:00:05]} 26. Kb4 {[%clk 0:00:18]}  Rd4 {[%clk 0:00:00]} 27. Rhc1 {[%clk 0:00:17]} 1-0


[Site "https://www.chess.com"]

[Event "Titled Tuesday Blitz June 13 Late 2023"]
[White "Papayan, Oleg"]
[Black "Makaraci, Tunahan"]
[WhiteFideId "4193911"]
[BlackFideId "6356559"]
[WhiteElo "2167"]
[BlackElo "2160"]
[Result "1-0"]
[Round "6"]
[TimeControl "180+2"]
[Date "2023.06.13"]
[WhiteClock "0:00:18"]
[BlackClock "0:00:32"]
[Board "107"]

1. e4 {[%clk 0:03:00]}  Nf6 {[%clk 0:02:59]} 2. e5 {[%clk 0:03:01]}  Nd5 {[%clk 0:03:00]} 3. d4 {[%clk 0:03:01]}  d6 {[%clk 0:03:00]} 4. c4 {[%clk 0:03:02]}  Nb6 {[%clk 0:03:01]} 5. f4 {[%clk 0:03:03]}  dxe5 {[%clk 0:03:01]} 6. fxe5 {[%clk 0:03:03]}  Bf5 {[%clk 0:03:01]} 7. Nc3 {[%clk 0:03:03]}  e6 {[%clk 0:03:02]} 8. Be3 {[%clk 0:03:04]}  Bb4 {[%clk 0:03:02]} 9. Nf3 {[%clk 0:02:58]}  c5 {[%clk 0:03:02]} 10. a3 {[%clk 0:02:52]}  Bxc3+ {[%clk 0:03:01]} 11. bxc3 {[%clk 0:02:52]}  Nc6 {[%clk 0:03:01]} 12. Be2 {[%clk 0:02:49]}  O-O {[%clk 0:02:59]} 13. O-O {[%clk 0:02:49]}  Bg6 {[%clk 0:02:58]} 14. Qd2 {[%clk 0:02:25]}  Rc8 {[%clk 0:02:48]} 15. Rac1 {[%clk 0:02:17]}  Na5 {[%clk 0:02:44]} 16. Qa2 {[%clk 0:02:18]}  cxd4 {[%clk 0:02:36]} 17. cxd4 {[%clk 0:02:18]}  Qd7 {[%clk 0:02:34]} 18. d5 {[%clk 0:02:06]}  exd5 {[%clk 0:02:21]} 19. Bxb6 {[%clk 0:02:06]}  axb6 {[%clk 0:02:22]} 20. cxd5 {[%clk 0:02:07]}  Rxc1 {[%clk 0:02:19]} 21. Rxc1 {[%clk 0:02:07]}  Be4 {[%clk 0:02:19]} 22. d6 {[%clk 0:02:00]}  Nc6 {[%clk 0:02:18]} 23. Qb2 {[%clk 0:01:37]}  Re8 {[%clk 0:02:00]} 24. Qxb6 {[%clk 0:01:32]}  h6 {[%clk 0:01:52]} 25. Nd4 {[%clk 0:01:04]}  Rxe5 {[%clk 0:01:36]} 26. Nxc6 {[%clk 0:00:39]}  Bxc6 {[%clk 0:01:37]} 27. Bf3 {[%clk 0:00:23]}  Bxf3 {[%clk 0:01:28]} 28. gxf3 {[%clk 0:00:23]}  Rg5+ {[%clk 0:00:37]} 29. Kh1 {[%clk 0:00:23]}  Rg6 {[%clk 0:00:37]} 30. Qc7 {[%clk 0:00:16]}  Qh3 {[%clk 0:00:35]} 31. Qc8+ {[%clk 0:00:16]}  Qxc8 {[%clk 0:00:33]} 32. Rxc8+ {[%clk 0:00:17]}  Kh7 {[%clk 0:00:32]} 33. d7 {[%clk 0:00:18]} 1-0


[Site "https://www.chess.com"]

[Event "Titled Tuesday Blitz June 13 Late 2023"]
[White "WindWhistler11"]
[Black "Ansh M Shah"]
[BlackFideId "25033379"]
[WhiteElo "2560"]
[BlackElo "2084"]
[Result "0-1"]
[Round "6"]
[TimeControl "180+2"]
[Date "2023.06.13"]
[WhiteClock "0:00:00"]
[BlackClock "0:00:08"]
[Board "108"]

1. c4 {[%clk 0:03:00]}  c6 {[%clk 0:02:58]} 2. g3 {[%clk 0:02:57]}  d5 {[%clk 0:02:59]} 3. Qc2 {[%clk 0:02:54]}  g6 {[%clk 0:02:59]} 4. d3 {[%clk 0:02:53]}  Bg7 {[%clk 0:02:59]} 5. Bg2 {[%clk 0:02:52]}  e6 {[%clk 0:02:58]} 6. Nc3 {[%clk 0:02:50]}  Ne7 {[%clk 0:02:58]} 7. b3 {[%clk 0:02:49]}  O-O {[%clk 0:02:58]} 8. Bb2 {[%clk 0:02:49]}  b6 {[%clk 0:02:52]} 9. Nf3 {[%clk 0:02:42]}  Bb7 {[%clk 0:02:53]} 10. O-O {[%clk 0:02:38]}  c5 {[%clk 0:02:53]} 11. e4 {[%clk 0:02:28]}  dxe4 {[%clk 0:02:44]} 12. Nxe4 {[%clk 0:02:23]}  Nbc6 {[%clk 0:02:37]} 13. Bxg7 {[%clk 0:02:01]}  Kxg7 {[%clk 0:02:37]} 14. Qb2+ {[%clk 0:01:56]}  Nd4 {[%clk 0:02:38]} 15. b4 {[%clk 0:01:44]}  Bxe4 {[%clk 0:02:31]} 16. Nxd4 {[%clk 0:01:28]}  Qxd4 {[%clk 0:02:24]} 17. Qxd4+ {[%clk 0:01:27]}  cxd4 {[%clk 0:02:25]} 18. Bxe4 {[%clk 0:01:27]}  Rac8 {[%clk 0:02:23]} 19. a4 {[%clk 0:01:15]}  Nc6 {[%clk 0:02:21]} 20. Rfb1 {[%clk 0:01:07]}  f5 {[%clk 0:02:17]} 21. Bxc6 {[%clk 0:00:54]}  Rxc6 {[%clk 0:02:18]} 22. b5 {[%clk 0:00:54]}  Rc5 {[%clk 0:02:16]} 23. a5 {[%clk 0:00:54]}  Rf7 {[%clk 0:02:11]} 24. axb6 {[%clk 0:00:52]}  axb6 {[%clk 0:02:12]} 25. Ra8 {[%clk 0:00:50]}  e5 {[%clk 0:02:07]} 26. Rb8 {[%clk 0:00:43]}  Rf6 {[%clk 0:02:07]} 27. Rd8 {[%clk 0:00:37]}  Re6 {[%clk 0:01:53]} 28. Rb4 {[%clk 0:00:35]}  Kf6 {[%clk 0:01:51]} 29. Ra4 {[%clk 0:00:34]}  Ke7 {[%clk 0:01:44]} 30. Raa8 {[%clk 0:00:26]}  e4 {[%clk 0:01:33]} 31. Rxd4 {[%clk 0:00:20]}  exd3 {[%clk 0:01:33]} 32. Ra7+ {[%clk 0:00:19]}  Kf6 {[%clk 0:01:32]} 33. Rxh7 {[%clk 0:00:11]}  Re1+ {[%clk 0:00:57]} 34. Kg2 {[%clk 0:00:09]}  d2 {[%clk 0:00:51]} 35. Rhd7 {[%clk 0:00:07]}  Kg5 {[%clk 0:00:29]} 36. h4+ {[%clk 0:00:04]}  Kh6 {[%clk 0:00:29]} 37. Rxd2 {[%clk 0:00:02]}  Rxc4 {[%clk 0:00:28]} 38. R7d6 {[%clk 0:00:02]}  f4 {[%clk 0:00:19]} 39. Rxb6 {[%clk 0:00:02]}  fxg3 {[%clk 0:00:19]} 40. fxg3 {[%clk 0:00:02]}  Re3 {[%clk 0:00:18]} 41. Rf2 {[%clk 0:00:01]}  Rcc3 {[%clk 0:00:19]} 42. Kh2 {[%clk 0:00:01]}  Rxg3 {[%clk 0:00:19]} 43. Rff6 {[%clk 0:00:02]}  Rh3+ {[%clk 0:00:20]} 44. Kg2 {[%clk 0:00:03]}  Rcg3+ {[%clk 0:00:20]} 45. Kf2 {[%clk 0:00:03]}  Rg4 {[%clk 0:00:21]} 46. Rbc6 {[%clk 0:00:03]}  Rhxh4 {[%clk 0:00:18]} 47. b6 {[%clk 0:00:04]}  Rh2+ {[%clk 0:00:18]} 48. Kf3 {[%clk 0:00:04]}  Rg1 {[%clk 0:00:19]} 49. Ke4 {[%clk 0:00:04]}  Rb2 {[%clk 0:00:18]} 50. Kd5 {[%clk 0:00:04]}  Rd1+ {[%clk 0:00:18]} 51. Ke6 {[%clk 0:00:04]}  Rdb1 {[%clk 0:00:18]} 52. Kf7 {[%clk 0:00:04]}  Rg1 {[%clk 0:00:17]} 53. Rc8 {[%clk 0:00:02]}  Kh7 {[%clk 0:00:08]} 54. Rc7 {[%clk 0:00:00]}  Kh6 {[%clk 0:00:08]} 0-1


[Site "https://www.chess.com"]

[Event "Titled Tuesday Blitz June 13 Late 2023"]
[White "Gimenez Aguirre, Alejo Ismael"]
[Black "Fajdetic, Hrvoje"]
[WhiteFideId "32041667"]
[BlackFideId "14501945"]
[WhiteElo "2165"]
[BlackElo "2185"]
[Result "1-0"]
[Round "6"]
[TimeControl "180+2"]
[Date "2023.06.13"]
[WhiteClock "0:00:56"]
[BlackClock "0:00:06"]
[Board "110"]

1. e4 {[%clk 0:03:00]}  c5 {[%clk 0:02:55]} 2. Nf3 {[%clk 0:02:59]}  a6 {[%clk 0:02:54]} 3. d4 {[%clk 0:02:59]}  cxd4 {[%clk 0:02:55]} 4. Nxd4 {[%clk 0:03:00]}  Nf6 {[%clk 0:02:54]} 5. Nc3 {[%clk 0:02:54]}  e5 {[%clk 0:02:51]} 6. Nf3 {[%clk 0:02:52]}  Nc6 {[%clk 0:02:51]} 7. Be2 {[%clk 0:02:52]}  Bb4 {[%clk 0:02:50]} 8. O-O {[%clk 0:02:52]}  O-O {[%clk 0:02:46]} 9. Bg5 {[%clk 0:02:50]}  h6 {[%clk 0:02:39]} 10. Bh4 {[%clk 0:02:50]}  Be7 {[%clk 0:02:38]} 11. a4 {[%clk 0:02:40]}  d6 {[%clk 0:02:33]} 12. Bxf6 {[%clk 0:02:39]}  Bxf6 {[%clk 0:02:32]} 13. Nd5 {[%clk 0:02:39]}  Bg4 {[%clk 0:02:29]} 14. h3 {[%clk 0:02:39]}  Bxf3 {[%clk 0:02:30]} 15. Bxf3 {[%clk 0:02:40]}  Nd4 {[%clk 0:02:30]} 16. c3 {[%clk 0:02:40]}  Nxf3+ {[%clk 0:02:29]} 17. Qxf3 {[%clk 0:02:41]}  Rc8 {[%clk 0:02:24]} 18. Rfd1 {[%clk 0:02:41]}  Rc6 {[%clk 0:02:24]} 19. Rd3 {[%clk 0:02:39]}  Re8 {[%clk 0:02:20]} 20. Rad1 {[%clk 0:02:38]}  Re6 {[%clk 0:02:20]} 21. Qe3 {[%clk 0:02:30]}  Bg5 {[%clk 0:02:16]} 22. Qa7 {[%clk 0:02:29]}  Qc8 {[%clk 0:02:09]} 23. Nb4 {[%clk 0:02:20]}  Rc4 {[%clk 0:01:56]} 24. f3 {[%clk 0:02:20]}  Be7 {[%clk 0:01:51]} 25. Nd5 {[%clk 0:02:19]}  Bf8 {[%clk 0:01:49]} 26. b3 {[%clk 0:02:17]}  Rc6 {[%clk 0:01:49]} 27. c4 {[%clk 0:02:18]}  g6 {[%clk 0:01:43]} 28. Kh1 {[%clk 0:02:18]}  Kg7 {[%clk 0:01:43]} 29. Rf1 {[%clk 0:02:17]}  f5 {[%clk 0:01:40]} 30. exf5 {[%clk 0:02:13]}  gxf5 {[%clk 0:01:41]} 31. g4 {[%clk 0:02:10]}  f4 {[%clk 0:01:39]} 32. Rg1 {[%clk 0:02:03]}  Rg6 {[%clk 0:01:38]} 33. Nc3 {[%clk 0:02:00]}  h5 {[%clk 0:01:36]} 34. Ne4 {[%clk 0:02:00]}  hxg4 {[%clk 0:01:28]} 35. Rxg4 {[%clk 0:01:54]}  Be7 {[%clk 0:01:20]} 36. Qg1 {[%clk 0:01:50]}  Qf5 {[%clk 0:01:02]} 37. Rd2 {[%clk 0:01:50]}  Kh7 {[%clk 0:00:59]} 38. Rdg2 {[%clk 0:01:48]}  d5 {[%clk 0:00:47]} 39. cxd5 {[%clk 0:01:47]}  Rxg4 {[%clk 0:00:28]} 40. Rxg4 {[%clk 0:01:46]}  Rc2 {[%clk 0:00:23]} 41. d6 {[%clk 0:01:29]}  Qh5 {[%clk 0:00:20]} 42. Qf1 {[%clk 0:01:02]}  Bh4 {[%clk 0:00:13]} 43. Nf6+ {[%clk 0:00:53]}  Bxf6 {[%clk 0:00:13]} 44. Qd3+ {[%clk 0:00:54]}  Kh6 {[%clk 0:00:11]} 45. Qxc2 {[%clk 0:00:54]}  Qxh3+ {[%clk 0:00:12]} 46. Qh2 {[%clk 0:00:55]}  Qxh2+ {[%clk 0:00:12]} 47. Kxh2 {[%clk 0:00:55]}  b5 {[%clk 0:00:09]} 48. axb5 {[%clk 0:00:55]}  axb5 {[%clk 0:00:06]} 49. d7 {[%clk 0:00:56]} 1-0


[Site "https://www.chess.com"]

[Event "Titled Tuesday Blitz June 13 Late 2023"]
[White "Castella Garcia, Fausto"]
[Black "Diaz Rosas, Julio Cesar"]
[WhiteFideId "3501922"]
[BlackFideId "5105099"]
[WhiteElo "2245"]
[BlackElo "2284"]
[Result "1/2-1/2"]
[Round "6"]
[TimeControl "180+2"]
[Date "2023.06.13"]
[WhiteClock "0:00:07"]
[BlackClock "0:00:06"]
[Board "112"]

1. e4 {[%clk 0:02:51]}  c5 {[%clk 0:02:57]} 2. Nf3 {[%clk 0:02:51]}  d6 {[%clk 0:02:57]} 3. d4 {[%clk 0:02:51]}  cxd4 {[%clk 0:02:58]} 4. Nxd4 {[%clk 0:02:51]}  Nf6 {[%clk 0:02:58]} 5. Nc3 {[%clk 0:02:52]}  a6 {[%clk 0:02:59]} 6. Bg5 {[%clk 0:02:52]}  Nbd7 {[%clk 0:02:59]} 7. Qe2 {[%clk 0:02:51]}  h6 {[%clk 0:02:59]} 8. Bh4 {[%clk 0:02:50]}  g6 {[%clk 0:02:59]} 9. O-O-O {[%clk 0:02:50]}  e5 {[%clk 0:02:57]} 10. Nb3 {[%clk 0:02:40]}  Qc7 {[%clk 0:02:49]} 11. Qc4 {[%clk 0:02:40]}  Qc6 {[%clk 0:02:37]} 12. Nd5 {[%clk 0:02:03]}  Nxd5 {[%clk 0:02:27]} 13. Qxc6 {[%clk 0:01:38]}  bxc6 {[%clk 0:02:26]} 14. exd5 {[%clk 0:01:39]}  cxd5 {[%clk 0:02:18]} 15. Rxd5 {[%clk 0:01:38]}  Bb7 {[%clk 0:02:16]} 16. Rd2 {[%clk 0:01:35]}  a5 {[%clk 0:01:52]} 17. Bb5 {[%clk 0:01:34]}  a4 {[%clk 0:01:43]} 18. Nc5 {[%clk 0:01:32]}  Bc8 {[%clk 0:01:37]} 19. Bf6 {[%clk 0:01:26]}  Rh7 {[%clk 0:01:23]} 20. Nxd7 {[%clk 0:01:20]}  Bxd7 {[%clk 0:01:22]} 21. Bxd7+ {[%clk 0:01:20]}  Kxd7 {[%clk 0:01:23]} 22. Bxe5 {[%clk 0:01:21]}  Be7 {[%clk 0:01:20]} 23. Rhd1 {[%clk 0:01:18]}  Ra6 {[%clk 0:01:20]} 24. Kb1 {[%clk 0:01:11]}  h5 {[%clk 0:01:18]} 25. a3 {[%clk 0:01:07]}  h4 {[%clk 0:01:16]} 26. h3 {[%clk 0:01:07]}  Rh5 {[%clk 0:01:16]} 27. Bf4 {[%clk 0:01:03]}  Rf5 {[%clk 0:01:10]} 28. g3 {[%clk 0:01:03]}  Rb5 {[%clk 0:01:03]} 29. Rd5 {[%clk 0:01:00]}  Rb7 {[%clk 0:00:59]} 30. Be3 {[%clk 0:00:52]}  Ke6 {[%clk 0:00:55]} 31. g4 {[%clk 0:00:50]}  Bf6 {[%clk 0:00:53]} 32. Bc1 {[%clk 0:00:43]}  Rab6 {[%clk 0:00:52]} 33. Ka1 {[%clk 0:00:37]}  Rc6 {[%clk 0:00:33]} 34. g5 {[%clk 0:00:33]}  Be5 {[%clk 0:00:28]} 35. f4 {[%clk 0:00:33]}  Bg7 {[%clk 0:00:28]} 36. R5d3 {[%clk 0:00:28]}  Rb5 {[%clk 0:00:23]} 37. Re1+ {[%clk 0:00:27]}  Kd7 {[%clk 0:00:22]} 38. c3 {[%clk 0:00:27]}  Bf8 {[%clk 0:00:16]} 39. Rde3 {[%clk 0:00:24]}  d5 {[%clk 0:00:16]} 40. Re8 {[%clk 0:00:23]}  Bd6 {[%clk 0:00:15]} 41. Ra8 {[%clk 0:00:21]}  Rc4 {[%clk 0:00:13]} 42. Ra7+ {[%clk 0:00:20]}  Bc7 {[%clk 0:00:13]} 43. f5 {[%clk 0:00:18]}  gxf5 {[%clk 0:00:12]} 44. Rf1 {[%clk 0:00:16]}  d4 {[%clk 0:00:11]} 45. cxd4 {[%clk 0:00:15]}  Rd5 {[%clk 0:00:10]} 46. Bf4 {[%clk 0:00:15]}  Rdxd4 {[%clk 0:00:10]} 47. Bxc7 {[%clk 0:00:14]}  Rxc7 {[%clk 0:00:10]} 48. Rxc7+ {[%clk 0:00:15]}  Kxc7 {[%clk 0:00:11]} 49. Rxf5 {[%clk 0:00:14]}  Kc6 {[%clk 0:00:09]} 50. Rxf7 {[%clk 0:00:14]}  Rd3 {[%clk 0:00:09]} 51. Rf4 {[%clk 0:00:12]}  Rxh3 {[%clk 0:00:08]} 52. Rxa4 {[%clk 0:00:13]}  Rh1+ {[%clk 0:00:06]} 53. Ka2 {[%clk 0:00:12]}  h3 {[%clk 0:00:07]} 54. Rh4 {[%clk 0:00:12]}  h2 {[%clk 0:00:06]} 55. g6 {[%clk 0:00:13]}  Rg1 {[%clk 0:00:06]} 56. Rxh2 {[%clk 0:00:13]}  Rxg6 {[%clk 0:00:06]} 57. a4 {[%clk 0:00:14]}  Kb6 {[%clk 0:00:06]} 58. Ka3 {[%clk 0:00:14]}  Rg4 {[%clk 0:00:05]} 59. b3 {[%clk 0:00:14]}  Ka5 {[%clk 0:00:04]} 60. Rh5+ {[%clk 0:00:14]}  Ka6 {[%clk 0:00:04]} 61. a5 {[%clk 0:00:13]}  Rg3 {[%clk 0:00:03]} 62. Ka4 {[%clk 0:00:12]}  Rg1 {[%clk 0:00:04]} 63. Rh6+ {[%clk 0:00:11]}  Ka7 {[%clk 0:00:04]} 64. b4 {[%clk 0:00:12]}  Rg5 {[%clk 0:00:04]} 65. b5 {[%clk 0:00:11]}  Rg4+ {[%clk 0:00:03]} 66. Kb3 {[%clk 0:00:12]}  Rg3+ {[%clk 0:00:04]} 67. Kc4 {[%clk 0:00:12]}  Rg4+ {[%clk 0:00:04]} 68. Kd3 {[%clk 0:00:12]}  Rg3+ {[%clk 0:00:04]} 69. Ke4 {[%clk 0:00:13]}  Rg5 {[%clk 0:00:04]} 70. Ra6+ {[%clk 0:00:13]}  Kb7 {[%clk 0:00:04]} 71. Rb6+ {[%clk 0:00:13]}  Ka7 {[%clk 0:00:05]} 72. Kd4 {[%clk 0:00:12]}  Rh5 {[%clk 0:00:04]} 73. Kc4 {[%clk 0:00:11]}  Rh4+ {[%clk 0:00:05]} 74. Kc5 {[%clk 0:00:11]}  Rh5+ {[%clk 0:00:05]} 75. Kc6 {[%clk 0:00:11]}  Rh6+ {[%clk 0:00:05]} 76. Kc7 {[%clk 0:00:11]}  Rh7+ {[%clk 0:00:06]} 77. Kd8 {[%clk 0:00:12]}  Rh8+ {[%clk 0:00:06]} 78. Ke7 {[%clk 0:00:12]}  Rh7+ {[%clk 0:00:07]} 79. Kf8 {[%clk 0:00:12]}  Rh8+ {[%clk 0:00:07]} 80. Kg7 {[%clk 0:00:12]}  Rh5 {[%clk 0:00:07]} 81. Kg6 {[%clk 0:00:11]}  Re5 {[%clk 0:00:06]} 82. Kf6 {[%clk 0:00:07]}  Rh5 {[%clk 0:00:06]} 83. Ke7 {[%clk 0:00:06]}  Rh7+ {[%clk 0:00:05]} 84. Kf8 {[%clk 0:00:06]}  Rh8+ {[%clk 0:00:06]} 85. Kg7 {[%clk 0:00:06]}  Rh5 {[%clk 0:00:06]} 86. Kf6 {[%clk 0:00:07]}  Rh6+ {[%clk 0:00:06]} 87. Ke7 {[%clk 0:00:07]}  Rh7+ {[%clk 0:00:06]} 1/2-1/2


[Site "https://www.chess.com"]

[Event "Titled Tuesday Blitz June 13 Late 2023"]
[White "brm72"]
[Black "Hoffmann, Asa"]
[BlackFideId "2001470"]
[WhiteElo "2519"]
[BlackElo "2117"]
[Result "0-1"]
[Round "6"]
[TimeControl "180+2"]
[Date "2023.06.13"]
[WhiteClock "0:00:26"]
[BlackClock "0:01:11"]
[Board "113"]

1. e4 {[%clk 0:03:00]}  d6 {[%clk 0:02:59]} 2. d4 {[%clk 0:03:01]}  Nf6 {[%clk 0:02:54]} 3. Nc3 {[%clk 0:03:00]}  c6 {[%clk 0:02:54]} 4. Nf3 {[%clk 0:03:00]}  Bg4 {[%clk 0:02:54]} 5. Be2 {[%clk 0:02:59]}  e6 {[%clk 0:02:54]} 6. e5 {[%clk 0:02:51]}  dxe5 {[%clk 0:02:53]} 7. Nxe5 {[%clk 0:02:52]}  Bxe2 {[%clk 0:02:52]} 8. Nxe2 {[%clk 0:02:52]}  Nbd7 {[%clk 0:02:51]} 9. Bf4 {[%clk 0:02:51]}  Nxe5 {[%clk 0:02:50]} 10. Bxe5 {[%clk 0:02:52]}  Bd6 {[%clk 0:02:49]} 11. Bxd6 {[%clk 0:02:51]}  Qxd6 {[%clk 0:02:49]} 12. O-O {[%clk 0:02:50]}  O-O {[%clk 0:02:49]} 13. c3 {[%clk 0:02:51]}  c5 {[%clk 0:02:48]} 14. Qb3 {[%clk 0:02:48]}  b6 {[%clk 0:02:47]} 15. Rad1 {[%clk 0:02:48]}  Rfd8 {[%clk 0:02:46]} 16. h3 {[%clk 0:02:47]}  Nd5 {[%clk 0:02:42]} 17. c4 {[%clk 0:02:41]}  Nf4 {[%clk 0:02:38]} 18. Nxf4 {[%clk 0:02:41]}  Qxf4 {[%clk 0:02:37]} 19. dxc5 {[%clk 0:02:41]}  bxc5 {[%clk 0:02:37]} 20. Qb5 {[%clk 0:02:40]}  Qf5 {[%clk 0:02:29]} 21. Rd7 {[%clk 0:02:19]}  Rxd7 {[%clk 0:02:15]} 22. Qxd7 {[%clk 0:02:20]}  h6 {[%clk 0:02:11]} 23. Rd1 {[%clk 0:02:14]}  a5 {[%clk 0:02:08]} 24. Qb5 {[%clk 0:02:06]}  a4 {[%clk 0:02:06]} 25. Qb7 {[%clk 0:01:55]}  Rf8 {[%clk 0:02:03]} 26. Qb5 {[%clk 0:01:52]}  Qc2 {[%clk 0:02:01]} 27. Re1 {[%clk 0:01:33]}  Qd2 {[%clk 0:01:55]} 28. Re3 {[%clk 0:01:31]}  Rd8 {[%clk 0:01:43]} 29. Qxa4 {[%clk 0:01:18]}  Qc1+ {[%clk 0:01:34]} 30. Kh2 {[%clk 0:01:15]}  Qxb2 {[%clk 0:01:33]} 31. Rf3 {[%clk 0:01:07]}  Qe5+ {[%clk 0:01:28]} 32. g3 {[%clk 0:01:06]}  Qe1 {[%clk 0:01:13]} 33. Qa7 {[%clk 0:00:42]}  Rd1 {[%clk 0:01:12]} 34. Qxf7+ {[%clk 0:00:26]}  Kh7 {[%clk 0:01:11]} 0-1


[Site "https://www.chess.com"]

[Event "Titled Tuesday Blitz June 13 Late 2023"]
[White "Quinones Garcia, Santiago"]
[Black "Tokhirjonova, Gulrukhbegim"]
[WhiteFideId "4408497"]
[BlackFideId "14203626"]
[WhiteElo "2173"]
[BlackElo "2265"]
[Result "0-1"]
[Round "6"]
[TimeControl "180+2"]
[Date "2023.06.13"]
[WhiteClock "0:00:00"]
[BlackClock "0:01:07"]
[Board "114"]

1. d4 {[%clk 0:02:59]}  Nf6 {[%clk 0:02:57]} 2. c4 {[%clk 0:02:56]}  e6 {[%clk 0:02:52]} 3. Nc3 {[%clk 0:02:56]}  b6 {[%clk 0:02:52]} 4. Bg5 {[%clk 0:02:53]}  Be7 {[%clk 0:02:49]} 5. e4 {[%clk 0:02:51]}  d6 {[%clk 0:02:45]} 6. Nf3 {[%clk 0:02:51]}  Bb7 {[%clk 0:02:45]} 7. Bd3 {[%clk 0:02:50]}  Nbd7 {[%clk 0:02:44]} 8. O-O {[%clk 0:02:50]}  e5 {[%clk 0:02:44]} 9. d5 {[%clk 0:02:48]}  Nxd5 {[%clk 0:02:33]} 10. Nxd5 {[%clk 0:02:42]}  Bxg5 {[%clk 0:02:33]} 11. Nxg5 {[%clk 0:02:35]}  Bxd5 {[%clk 0:02:32]} 12. cxd5 {[%clk 0:02:30]}  Qxg5 {[%clk 0:02:32]} 13. Bb5 {[%clk 0:02:25]}  Qd8 {[%clk 0:02:22]} 14. Qa4 {[%clk 0:02:18]}  Ke7 {[%clk 0:02:20]} 15. Bc6 {[%clk 0:02:08]}  Nc5 {[%clk 0:02:17]} 16. Qa3 {[%clk 0:01:57]}  Nxe4 {[%clk 0:02:16]} 17. Bxa8 {[%clk 0:01:55]}  Qxa8 {[%clk 0:02:14]} 18. Rac1 {[%clk 0:01:54]}  Kd8 {[%clk 0:02:10]} 19. Qd3 {[%clk 0:01:48]}  Nc5 {[%clk 0:02:06]} 20. Qd2 {[%clk 0:01:44]}  f6 {[%clk 0:02:02]} 21. Qc2 {[%clk 0:01:32]}  a5 {[%clk 0:02:01]} 22. a3 {[%clk 0:01:32]}  a4 {[%clk 0:02:01]} 23. Rfd1 {[%clk 0:01:30]}  Ke7 {[%clk 0:02:00]} 24. Qf5 {[%clk 0:01:27]}  g6 {[%clk 0:01:59]} 25. Qg4 {[%clk 0:01:25]}  f5 {[%clk 0:01:58]} 26. Qg5+ {[%clk 0:01:20]}  Kf7 {[%clk 0:01:59]} 27. h4 {[%clk 0:01:12]}  Rg8 {[%clk 0:01:52]} 28. h5 {[%clk 0:01:10]}  Qe8 {[%clk 0:01:48]} 29. h6 {[%clk 0:00:59]}  e4 {[%clk 0:01:45]} 30. Rd4 {[%clk 0:00:55]}  Qe5 {[%clk 0:01:44]} 31. Rxa4 {[%clk 0:00:19]}  Qxb2 {[%clk 0:01:29]} 32. Ra7 {[%clk 0:00:15]}  Rc8 {[%clk 0:01:28]} 33. g4 {[%clk 0:00:13]}  Nd3 {[%clk 0:01:25]} 34. Rf1 {[%clk 0:00:13]}  Qe5 {[%clk 0:01:24]} 35. gxf5 {[%clk 0:00:12]}  gxf5 {[%clk 0:01:24]} 36. Qh5+ {[%clk 0:00:11]}  Ke7 {[%clk 0:01:23]} 37. Kh1 {[%clk 0:00:11]}  Nf4 {[%clk 0:01:20]} 38. Qh4+ {[%clk 0:00:11]}  Kd7 {[%clk 0:01:19]} 39. Rg1 {[%clk 0:00:11]}  Ng6 {[%clk 0:01:18]} 40. Qh3 {[%clk 0:00:07]}  Qxd5 {[%clk 0:01:17]} 41. Rg5 {[%clk 0:00:06]}  e3+ {[%clk 0:01:14]} 42. Kh2 {[%clk 0:00:04]}  Qe5+ {[%clk 0:01:14]} 43. Kh1 {[%clk 0:00:03]}  e2 {[%clk 0:01:10]} 44. Rxf5 {[%clk 0:00:03]}  e1=Q+ {[%clk 0:01:10]} 45. Kg2 {[%clk 0:00:03]}  Q1e4+ {[%clk 0:01:09]} 46. Rf3+ {[%clk 0:00:03]}  Qe6 {[%clk 0:01:08]} 47. Qh5 {[%clk 0:00:00]}  Nf4+ {[%clk 0:01:07]} 0-1


[Site "https://www.chess.com"]